[Event "Titled Tuesday Blitz January 10 Late 2023"]
[White "Karttunen, Mika"]
[Black "Bazeev, German"]
[WhiteFideId "502081"]
[BlackFideId "24119350"]
[WhiteElo "2490"]
[BlackElo "2369"]
[Result "0-1"]
[Round "07"]
[TimeControl "180+2"]
[Date "2023.01.10"]
[WhiteClock "0:00:06"]
[BlackClock "0:00:46"]

1. e4 {[%clk 0:00:00]}  c5 {[%clk 0:00:00]} 2. Nf3 {[%clk 0:03:00]}  Nf6 {[%clk 0:02:41]} 3. e5 {[%clk 0:03:00]}  Nd5 {[%clk 0:02:42]} 4. Nc3 {[%clk 0:02:58]}  Nxc3 {[%clk 0:02:42]} 5. dxc3 {[%clk 0:02:59]}  Nc6 {[%clk 0:02:42]} 6. Bc4 {[%clk 0:02:59]}  Qc7 {[%clk 0:02:43]} 7. Qe2 {[%clk 0:02:45]}  e6 {[%clk 0:02:42]} 8. Bd2 {[%clk 0:02:40]}  h6 {[%clk 0:02:42]} 9. h4 {[%clk 0:02:10]}  b6 {[%clk 0:02:40]} 10. h5 {[%clk 0:02:09]}  Bb7 {[%clk 0:02:37]} 11. O-O-O {[%clk 0:02:00]}  a6 {[%clk 0:02:36]} 12. Rh4 {[%clk 0:01:45]}  b5 {[%clk 0:02:31]} 13. Bd3 {[%clk 0:01:28]}  c4 {[%clk 0:02:29]} 14. Be4 {[%clk 0:01:28]}  Ne7 {[%clk 0:02:30]} 15. Bf4 {[%clk 0:01:29]}  Rb8 {[%clk 0:02:30]} 16. Bh2 {[%clk 0:00:53]}  Bxe4 {[%clk 0:02:15]} 17. Rxe4 {[%clk 0:00:34]}  Rc8 {[%clk 0:02:03]} 18. Red4 {[%clk 0:00:34]}  Rd8 {[%clk 0:01:53]} 19. Qe4 {[%clk 0:00:31]}  Nc6 {[%clk 0:01:37]} 20. R4d2 {[%clk 0:00:26]}  b4 {[%clk 0:01:35]} 21. Qxc4 {[%clk 0:00:24]}  bxc3 {[%clk 0:01:16]} 22. Rd3 {[%clk 0:00:12]}  cxb2+ {[%clk 0:01:16]} 23. Kb1 {[%clk 0:00:11]}  Be7 {[%clk 0:01:14]} 24. Nd4 {[%clk 0:00:11]}  O-O {[%clk 0:01:11]} 25. Nxc6 {[%clk 0:00:11]}  dxc6 {[%clk 0:01:07]} 26. Bf4 {[%clk 0:00:11]}  Rd5 {[%clk 0:01:03]} 27. Rxd5 {[%clk 0:00:10]}  exd5 {[%clk 0:01:02]} 28. Rxd5 {[%clk 0:00:07]}  Qc8 {[%clk 0:01:03]} 29. Rd3 {[%clk 0:00:08]}  Qf5 {[%clk 0:01:00]} 30. g3 {[%clk 0:00:07]}  Qxh5 {[%clk 0:00:58]} 31. Kxb2 {[%clk 0:00:07]}  Qf5 {[%clk 0:00:56]} 32. Qxa6 {[%clk 0:00:07]}  Rb8+ {[%clk 0:00:55]} 33. Rb3 {[%clk 0:00:07]}  Rf8 {[%clk 0:00:54]} 34. Qxc6 {[%clk 0:00:07]}  g5 {[%clk 0:00:49]} 35. Be3 {[%clk 0:00:06]}  Qxe5+ {[%clk 0:00:50]} 36. Kb1 {[%clk 0:00:06]}  Bf6 {[%clk 0:00:50]} 37. c3 {[%clk 0:00:06]}  Rd8 {[%clk 0:00:50]} 38. Bd4 {[%clk 0:00:06]}  Qe1+ {[%clk 0:00:47]} 39. Kb2 {[%clk 0:00:06]}  Bxd4 {[%clk 0:00:46]} 40. cxd4 {[%clk 0:00:06]}  Qxf2+ {[%clk 0:00:47]} 41. Qc2 {[%clk 0:00:07]}  Qxd4+ {[%clk 0:00:48]} 42. Qc3 {[%clk 0:00:06]}  Qf2+ {[%clk 0:00:48]} 43. Ka3 {[%clk 0:00:06]}  Ra8+ {[%clk 0:00:47]} 44. Kb4 {[%clk 0:00:06]}  Qb6+ {[%clk 0:00:46]} 0-1


[Site "https://www.chess.com"]

[Event "Titled Tuesday Blitz January 10 Late 2023"]
[White "Pham, Khoi"]
[Black "Goryachkina, Aleksandra"]
[WhiteFideId "1054988"]
[BlackFideId "4147103"]
[WhiteElo "2355"]
[BlackElo "2571"]
[Result "1/2-1/2"]
[Round "07"]
[TimeControl "180+2"]
[Date "2023.01.10"]
[WhiteClock "0:00:10"]
[BlackClock "0:00:05"]

1. e4 {[%clk 0:00:00]}  c5 {[%clk 0:00:00]} 2. Nf3 {[%clk 0:03:00]}  e6 {[%clk 0:02:59]} 3. d4 {[%clk 0:03:00]}  cxd4 {[%clk 0:03:00]} 4. Nxd4 {[%clk 0:02:59]}  Nf6 {[%clk 0:03:00]} 5. Nc3 {[%clk 0:03:00]}  Nc6 {[%clk 0:03:01]} 6. Ndb5 {[%clk 0:03:00]}  Bc5 {[%clk 0:03:01]} 7. Bf4 {[%clk 0:02:55]}  O-O {[%clk 0:03:01]} 8. Bd6 {[%clk 0:02:53]}  Bxd6 {[%clk 0:03:00]} 9. Qxd6 {[%clk 0:02:49]}  a6 {[%clk 0:02:54]} 10. Nd4 {[%clk 0:02:50]}  Ne7 {[%clk 0:02:51]} 11. O-O-O {[%clk 0:02:17]}  b5 {[%clk 0:02:42]} 12. f3 {[%clk 0:02:16]}  Bb7 {[%clk 0:02:40]} 13. g4 {[%clk 0:02:11]}  Ne8 {[%clk 0:02:33]} 14. Qg3 {[%clk 0:02:11]}  b4 {[%clk 0:02:32]} 15. Nce2 {[%clk 0:02:10]}  a5 {[%clk 0:02:30]} 16. g5 {[%clk 0:02:09]}  a4 {[%clk 0:02:20]} 17. h4 {[%clk 0:02:03]}  Qb6 {[%clk 0:02:19]} 18. Kb1 {[%clk 0:01:59]}  b3 {[%clk 0:02:17]} 19. cxb3 {[%clk 0:01:57]}  axb3 {[%clk 0:01:35]} 20. a3 {[%clk 0:01:56]}  Nd6 {[%clk 0:01:35]} 21. Nc3 {[%clk 0:01:56]}  Rfc8 {[%clk 0:00:53]} 22. Nxe6 {[%clk 0:01:54]}  dxe6 {[%clk 0:00:50]} 23. Qxd6 {[%clk 0:01:39]}  Qf2 {[%clk 0:00:38]} 24. Be2 {[%clk 0:01:37]}  Ng6 {[%clk 0:00:38]} 25. h5 {[%clk 0:01:19]}  Nf8 {[%clk 0:00:32]} 26. Qd4 {[%clk 0:01:10]}  Qg3 {[%clk 0:00:28]} 27. Rhg1 {[%clk 0:01:05]}  Qc7 {[%clk 0:00:21]} 28. h6 {[%clk 0:00:57]}  e5 {[%clk 0:00:20]} 29. Qd6 {[%clk 0:00:53]}  Qa5 {[%clk 0:00:20]} 30. hxg7 {[%clk 0:00:51]}  Ne6 {[%clk 0:00:20]} 31. Nd5 {[%clk 0:00:48]}  Bxd5 {[%clk 0:00:20]} 32. Rxd5 {[%clk 0:00:29]}  Qa7 {[%clk 0:00:20]} 33. Rgd1 {[%clk 0:00:25]}  Qf2 {[%clk 0:00:20]} 34. R5d2 {[%clk 0:00:22]}  Rc2 {[%clk 0:00:16]} 35. Qd3 {[%clk 0:00:17]}  Rac8 {[%clk 0:00:08]} 36. Qxb3 {[%clk 0:00:06]}  Rxd2 {[%clk 0:00:07]} 37. Rxd2 {[%clk 0:00:04]}  Nd4 {[%clk 0:00:07]} 38. Qd3 {[%clk 0:00:05]}  Qe1+ {[%clk 0:00:06]} 39. Bd1 {[%clk 0:00:04]}  Nxf3 {[%clk 0:00:06]} 40. Qxf3 {[%clk 0:00:04]}  Qxd2 {[%clk 0:00:03]} 41. Qe2 {[%clk 0:00:01]}  Rc1+ {[%clk 0:00:03]} 42. Ka2 {[%clk 0:00:02]}  Rxd1 {[%clk 0:00:02]} 43. Qxd2 {[%clk 0:00:02]}  Rxd2 {[%clk 0:00:03]} 44. a4 {[%clk 0:00:03]}  Kxg7 {[%clk 0:00:03]} 45. a5 {[%clk 0:00:03]}  Rd4 {[%clk 0:00:04]} 46. Ka3 {[%clk 0:00:04]}  Kg6 {[%clk 0:00:03]} 47. b4 {[%clk 0:00:04]}  Kxg5 {[%clk 0:00:03]} 48. a6 {[%clk 0:00:05]}  h5 {[%clk 0:00:03]} 49. b5 {[%clk 0:00:05]}  h4 {[%clk 0:00:02]} 50. a7 {[%clk 0:00:05]}  Rd8 {[%clk 0:00:02]} 51. b6 {[%clk 0:00:06]}  h3 {[%clk 0:00:03]} 52. b7 {[%clk 0:00:06]}  h2 {[%clk 0:00:03]} 53. b8=Q {[%clk 0:00:07]}  Rxb8 {[%clk 0:00:04]} 54. axb8=Q {[%clk 0:00:06]}  h1=Q {[%clk 0:00:03]} 55. Qxe5+ {[%clk 0:00:07]}  Kg6 {[%clk 0:00:03]} 56. Qf5+ {[%clk 0:00:07]}  Kg7 {[%clk 0:00:04]} 57. Kb4 {[%clk 0:00:08]}  Qb1+ {[%clk 0:00:04]} 58. Kc4 {[%clk 0:00:08]}  Qa2+ {[%clk 0:00:03]} 59. Kd4 {[%clk 0:00:08]}  Qb2+ {[%clk 0:00:04]} 60. Ke3 {[%clk 0:00:09]}  Qc1+ {[%clk 0:00:04]} 61. Kf3 {[%clk 0:00:09]}  Qf1+ {[%clk 0:00:05]} 62. Kg4 {[%clk 0:00:09]}  Qxf5+ {[%clk 0:00:05]} 63. Kxf5 {[%clk 0:00:09]}  f6 {[%clk 0:00:05]} 64. e5 {[%clk 0:00:10]}  fxe5 {[%clk 0:00:05]} 65. Kxe5 {[%clk 0:00:10]} 1/2-1/2


[Site "https://www.chess.com"]

[Event "Titled Tuesday Blitz January 10 Late 2023"]
[White "Jimenez Almeida, Luis David"]
[Black "Barrientos, Sergio E"]
[WhiteFideId "22242244"]
[BlackFideId "4401824"]
[WhiteElo "2242"]
[BlackElo "2479"]
[Result "1-0"]
[Round "07"]
[TimeControl "180+2"]
[Date "2023.01.10"]
[WhiteClock "0:00:24"]
[BlackClock "0:00:07"]

1. e4 {[%clk 0:00:00]}  c6 {[%clk 0:00:00]} 2. Nc3 {[%clk 0:03:00]}  d5 {[%clk 0:00:19]} 3. Qf3 {[%clk 0:02:57]}  e6 {[%clk 0:00:20]} 4. Nh3 {[%clk 0:02:57]}  Nd7 {[%clk 0:00:19]} 5. d4 {[%clk 0:02:54]}  Ngf6 {[%clk 0:00:20]} 6. e5 {[%clk 0:02:54]}  Ng8 {[%clk 0:00:19]} 7. Bd3 {[%clk 0:02:53]}  h6 {[%clk 0:00:19]} 8. Nf4 {[%clk 0:02:51]}  Ne7 {[%clk 0:00:20]} 9. Nh5 {[%clk 0:02:49]}  Nb6 {[%clk 0:00:20]} 10. h4 {[%clk 0:02:47]}  Qc7 {[%clk 0:00:20]} 11. g4 {[%clk 0:02:44]}  Nd7 {[%clk 0:00:20]} 12. g5 {[%clk 0:02:43]}  hxg5 {[%clk 0:00:20]} 13. hxg5 {[%clk 0:02:40]}  Rg8 {[%clk 0:00:19]} 14. Bd2 {[%clk 0:02:38]}  g6 {[%clk 0:00:19]} 15. Nf6+ {[%clk 0:02:03]}  Nxf6 {[%clk 0:00:19]} 16. gxf6 {[%clk 0:02:01]}  Nf5 {[%clk 0:00:19]} 17. Bxf5 {[%clk 0:02:01]}  exf5 {[%clk 0:00:20]} 18. O-O-O {[%clk 0:01:53]}  Be6 {[%clk 0:00:21]} 19. Rh7 {[%clk 0:01:49]}  O-O-O {[%clk 0:00:21]} 20. Ne2 {[%clk 0:01:48]}  c5 {[%clk 0:00:21]} 21. Nf4 {[%clk 0:01:47]}  Qb6 {[%clk 0:00:20]} 22. Be3 {[%clk 0:01:39]}  cxd4 {[%clk 0:00:20]} 23. Bxd4 {[%clk 0:01:13]}  Qa6 {[%clk 0:00:17]} 24. Kb1 {[%clk 0:01:13]}  Kb8 {[%clk 0:00:17]} 25. Rdh1 {[%clk 0:01:09]}  Bb4 {[%clk 0:00:17]} 26. Qb3 {[%clk 0:01:06]}  Bd2 {[%clk 0:00:17]} 27. Nd3 {[%clk 0:01:00]}  Qc4 {[%clk 0:00:16]} 28. Nc5 {[%clk 0:01:00]}  Qxb3 {[%clk 0:00:15]} 29. axb3 {[%clk 0:00:46]}  Rde8 {[%clk 0:00:14]} 30. Nxe6 {[%clk 0:00:47]}  Rxe6 {[%clk 0:00:09]} 31. Rxf7 {[%clk 0:00:46]}  Bf4 {[%clk 0:00:10]} 32. Rhh7 {[%clk 0:00:46]}  Bxe5 {[%clk 0:00:11]} 33. Rxb7+ {[%clk 0:00:41]}  Ka8 {[%clk 0:00:10]} 34. Rxa7+ {[%clk 0:00:40]}  Kb8 {[%clk 0:00:10]} 35. Bxe5+ {[%clk 0:00:40]}  Rxe5 {[%clk 0:00:11]} 36. Rae7 {[%clk 0:00:25]}  Rxe7 {[%clk 0:00:11]} 37. Rxe7 {[%clk 0:00:26]}  Rd8 {[%clk 0:00:10]} 38. f7 {[%clk 0:00:26]}  Kc8 {[%clk 0:00:07]} 39. Re8 {[%clk 0:00:24]} 1-0


[Site "https://www.chess.com"]

[Event "Titled Tuesday Blitz January 10 Late 2023"]
[White "Dimitrov, Atanas"]
[Black "Kaplan, Avi Harrison"]
[WhiteFideId "2901315"]
[BlackFideId "30934559"]
[WhiteElo "2269"]
[BlackElo "2146"]
[Result "1-0"]
[Round "07"]
[TimeControl "180+2"]
[Date "2023.01.10"]
[WhiteClock "0:01:13"]
[BlackClock "0:00:17"]

1. Nf3 {[%clk 0:00:00]}  c5 {[%clk 0:00:00]} 2. c4 {[%clk 0:03:00]}  Nc6 {[%clk 0:02:59]} 3. Nc3 {[%clk 0:03:00]}  e5 {[%clk 0:02:58]} 4. b3 {[%clk 0:03:01]}  d6 {[%clk 0:02:58]} 5. Bb2 {[%clk 0:02:58]}  Be6 {[%clk 0:02:57]} 6. e3 {[%clk 0:02:58]}  f5 {[%clk 0:02:56]} 7. d4 {[%clk 0:02:58]}  e4 {[%clk 0:02:54]} 8. d5 {[%clk 0:02:33]}  exf3 {[%clk 0:02:50]} 9. dxe6 {[%clk 0:02:26]}  fxg2 {[%clk 0:02:44]} 10. Bxg2 {[%clk 0:02:23]}  Nf6 {[%clk 0:02:36]} 11. Qd3 {[%clk 0:02:24]}  g6 {[%clk 0:02:35]} 12. O-O-O {[%clk 0:02:19]}  Be7 {[%clk 0:02:20]} 13. Kb1 {[%clk 0:02:13]}  O-O {[%clk 0:01:50]} 14. f4 {[%clk 0:02:05]}  Qc8 {[%clk 0:01:47]} 15. Nd5 {[%clk 0:01:54]}  Qxe6 {[%clk 0:01:37]} 16. Nxf6+ {[%clk 0:01:43]}  Qxf6 {[%clk 0:01:28]} 17. Bxf6 {[%clk 0:01:41]}  Bxf6 {[%clk 0:01:19]} 18. Bxc6 {[%clk 0:01:41]}  bxc6 {[%clk 0:01:20]} 19. Qxd6 {[%clk 0:01:39]}  Kg7 {[%clk 0:01:20]} 20. Qxc5 {[%clk 0:01:40]}  Rad8 {[%clk 0:01:20]} 21. Rxd8 {[%clk 0:01:39]}  Rxd8 {[%clk 0:01:19]} 22. Qxa7+ {[%clk 0:01:39]}  Kh6 {[%clk 0:01:20]} 23. Qf7 {[%clk 0:01:39]}  Bh4 {[%clk 0:01:20]} 24. Rc1 {[%clk 0:01:32]}  Rd2 {[%clk 0:00:59]} 25. Rc2 {[%clk 0:01:25]}  Rd1+ {[%clk 0:00:55]} 26. Kb2 {[%clk 0:01:25]}  c5 {[%clk 0:00:53]} 27. Qf8+ {[%clk 0:01:25]}  Kh5 {[%clk 0:00:53]} 28. Qxc5 {[%clk 0:01:19]}  Bf6+ {[%clk 0:00:52]} 29. Ka3 {[%clk 0:01:18]}  Rd7 {[%clk 0:00:50]} 30. Qc6 {[%clk 0:01:19]}  Ra7+ {[%clk 0:00:48]} 31. Kb4 {[%clk 0:01:17]}  Bg7 {[%clk 0:00:41]} 32. c5 {[%clk 0:01:17]}  Kh6 {[%clk 0:00:37]} 33. Qb6 {[%clk 0:01:17]}  Ra8 {[%clk 0:00:31]} 34. c6 {[%clk 0:01:17]}  Bf8+ {[%clk 0:00:25]} 35. Kb5 {[%clk 0:01:17]}  g5 {[%clk 0:00:26]} 36. c7+ {[%clk 0:01:17]}  Kh5 {[%clk 0:00:24]} 37. c8=Q {[%clk 0:01:17]}  Rxc8 {[%clk 0:00:24]} 38. Rxc8 {[%clk 0:01:17]}  Bh6 {[%clk 0:00:25]} 39. Rc6 {[%clk 0:01:17]}  Bg7 {[%clk 0:00:25]} 40. fxg5 {[%clk 0:01:17]}  f4 {[%clk 0:00:23]} 41. Rh6+ {[%clk 0:01:17]}  Kg4 {[%clk 0:00:22]} 42. Rxh7 {[%clk 0:01:17]}  Be5 {[%clk 0:00:22]} 43. Qe6+ {[%clk 0:01:16]}  Kf3 {[%clk 0:00:21]} 44. Qxe5 {[%clk 0:01:16]}  fxe3 {[%clk 0:00:21]} 45. Rf7+ {[%clk 0:01:17]}  Ke2 {[%clk 0:00:22]} 46. Re7 {[%clk 0:01:17]}  Kd2 {[%clk 0:00:22]} 47. Qxe3+ {[%clk 0:01:17]}  Kc2 {[%clk 0:00:20]} 48. Qe2+ {[%clk 0:01:17]}  Kc1 {[%clk 0:00:20]} 49. Rc7+ {[%clk 0:01:15]}  Kb1 {[%clk 0:00:18]} 50. Rf7 {[%clk 0:01:15]}  Ka1 {[%clk 0:00:17]} 51. Rf1# {[%clk 0:01:13]} 1-0


[Site "https://www.chess.com"]

[Event "Titled Tuesday Blitz January 10 Late 2023"]
[White "Hernandez Gonzalez, William"]
[Black "Lacasa Diaz, Jose Antonio"]
[WhiteFideId "3509915"]
[BlackFideId "2203375"]
[WhiteElo "2489"]
[BlackElo "2359"]
[Result "1-0"]
[Round "07"]
[TimeControl "180+2"]
[Date "2023.01.10"]
[WhiteClock "0:00:25"]
[BlackClock "0:00:04"]

1. e4 {[%clk 0:00:00]}  c5 {[%clk 0:00:00]} 2. Nf3 {[%clk 0:03:00]}  g6 {[%clk 0:02:59]} 3. d4 {[%clk 0:03:00]}  cxd4 {[%clk 0:02:58]} 4. Qxd4 {[%clk 0:03:00]}  Nf6 {[%clk 0:02:58]} 5. e5 {[%clk 0:03:01]}  Nc6 {[%clk 0:02:58]} 6. Qa4 {[%clk 0:03:00]}  Nd5 {[%clk 0:02:58]} 7. Qb3 {[%clk 0:03:01]}  Nc7 {[%clk 0:02:58]} 8. Nc3 {[%clk 0:03:01]}  Bg7 {[%clk 0:02:57]} 9. Bf4 {[%clk 0:02:58]}  O-O {[%clk 0:02:57]} 10. O-O-O {[%clk 0:02:58]}  b6 {[%clk 0:02:57]} 11. h4 {[%clk 0:02:58]}  b5 {[%clk 0:02:57]} 12. h5 {[%clk 0:02:50]}  b4 {[%clk 0:02:54]} 13. Nd5 {[%clk 0:02:43]}  Ne6 {[%clk 0:02:44]} 14. Bb5 {[%clk 0:02:29]}  Bb7 {[%clk 0:02:38]} 15. hxg6 {[%clk 0:02:13]}  fxg6 {[%clk 0:02:33]} 16. Bh6 {[%clk 0:02:09]}  Bxh6+ {[%clk 0:02:30]} 17. Rxh6 {[%clk 0:01:59]}  Rc8 {[%clk 0:01:59]} 18. Ng5 {[%clk 0:01:57]}  Rxf2 {[%clk 0:01:53]} 19. Bxc6 {[%clk 0:01:26]}  Rxc6 {[%clk 0:01:24]} 20. Nxb4 {[%clk 0:00:44]}  Rb6 {[%clk 0:00:43]} 21. Nxe6 {[%clk 0:00:34]}  Qc8 {[%clk 0:00:20]} 22. Nc5+ {[%clk 0:00:29]}  Kg7 {[%clk 0:00:04]} 23. Rdh1 {[%clk 0:00:25]} 1-0


[Site "https://www.chess.com"]

[Event "Titled Tuesday Blitz January 10 Late 2023"]
[White "Remizov, Yaroslav"]
[Black "Kuznecovs, Nikita"]
[WhiteFideId "34134015"]
[BlackFideId "11604557"]
[WhiteElo "2421"]
[BlackElo "2287"]
[Result "0-1"]
[Round "07"]
[TimeControl "180+2"]
[Date "2023.01.10"]
[WhiteClock "0:00:20"]
[BlackClock "0:00:24"]

1. e4 {[%clk 0:00:00]}  e6 {[%clk 0:00:00]} 2. Nc3 {[%clk 0:03:00]}  d5 {[%clk 0:02:59]} 3. g3 {[%clk 0:02:59]}  dxe4 {[%clk 0:03:00]} 4. Nxe4 {[%clk 0:03:00]}  Bd7 {[%clk 0:02:50]} 5. Qe2 {[%clk 0:03:01]}  Bc6 {[%clk 0:02:50]} 6. Nf3 {[%clk 0:03:01]}  Nf6 {[%clk 0:02:48]} 7. d3 {[%clk 0:03:01]}  Qd5 {[%clk 0:02:44]} 8. Nxf6+ {[%clk 0:02:59]}  gxf6 {[%clk 0:02:06]} 9. Bg2 {[%clk 0:02:59]}  Nd7 {[%clk 0:02:06]} 10. c4 {[%clk 0:03:00]}  Qa5+ {[%clk 0:02:07]} 11. Bd2 {[%clk 0:02:54]}  Bb4 {[%clk 0:02:03]} 12. a3 {[%clk 0:02:54]}  Bxd2+ {[%clk 0:02:04]} 13. Qxd2 {[%clk 0:02:51]}  Qxd2+ {[%clk 0:02:03]} 14. Kxd2 {[%clk 0:02:52]}  O-O-O {[%clk 0:02:02]} 15. Rhd1 {[%clk 0:02:53]}  Nc5 {[%clk 0:02:02]} 16. Kc3 {[%clk 0:02:48]}  Ba4 {[%clk 0:01:59]} 17. Rd2 {[%clk 0:02:45]}  Nb3 {[%clk 0:01:56]} 18. Re1 {[%clk 0:02:44]}  Nxd2 {[%clk 0:01:56]} 19. Nxd2 {[%clk 0:02:37]}  f5 {[%clk 0:01:56]} 20. d4 {[%clk 0:02:38]}  f4 {[%clk 0:01:45]} 21. b3 {[%clk 0:02:24]}  Bc6 {[%clk 0:01:38]} 22. Bxc6 {[%clk 0:02:15]}  bxc6 {[%clk 0:01:29]} 23. Ne4 {[%clk 0:02:15]}  Rhg8 {[%clk 0:01:29]} 24. Nf6 {[%clk 0:02:15]}  Rg6 {[%clk 0:01:26]} 25. Ne4 {[%clk 0:02:14]}  fxg3 {[%clk 0:01:23]} 26. hxg3 {[%clk 0:01:59]}  h5 {[%clk 0:01:21]} 27. Rh1 {[%clk 0:01:59]}  Rh8 {[%clk 0:01:21]} 28. Kb4 {[%clk 0:01:58]}  Rg4 {[%clk 0:01:22]} 29. f3 {[%clk 0:01:53]}  Rg6 {[%clk 0:01:07]} 30. Rh3 {[%clk 0:01:54]}  h4 {[%clk 0:01:07]} 31. gxh4 {[%clk 0:01:51]}  Rgh6 {[%clk 0:00:56]} 32. Ng5 {[%clk 0:01:39]}  Rxh4 {[%clk 0:00:52]} 33. Rg3 {[%clk 0:01:39]}  Rg8 {[%clk 0:00:47]} 34. Kc5 {[%clk 0:01:22]}  Rh5 {[%clk 0:00:46]} 35. f4 {[%clk 0:01:16]}  f6 {[%clk 0:00:45]} 36. Kxc6 {[%clk 0:01:12]}  fxg5 {[%clk 0:00:45]} 37. fxg5 {[%clk 0:01:11]}  Rhxg5 {[%clk 0:00:45]} 38. Rh3 {[%clk 0:01:03]}  e5 {[%clk 0:00:45]} 39. d5 {[%clk 0:00:59]}  R5g6+ {[%clk 0:00:43]} 40. Kc5 {[%clk 0:00:56]}  Re8 {[%clk 0:00:43]} 41. b4 {[%clk 0:00:56]}  e4 {[%clk 0:00:43]} 42. Re3 {[%clk 0:00:28]}  Rf6 {[%clk 0:00:43]} 43. a4 {[%clk 0:00:28]}  Rf3 {[%clk 0:00:41]} 44. Re1 {[%clk 0:00:25]}  e3 {[%clk 0:00:41]} 45. Kc6 {[%clk 0:00:24]}  e2 {[%clk 0:00:41]} 46. c5 {[%clk 0:00:22]}  Rf1 {[%clk 0:00:41]} 47. d6 {[%clk 0:00:22]}  cxd6 {[%clk 0:00:38]} 48. cxd6 {[%clk 0:00:22]}  Kd8 {[%clk 0:00:37]} 49. Rxe2 {[%clk 0:00:23]}  Rxe2 {[%clk 0:00:35]} 50. Kb7 {[%clk 0:00:21]}  Rb1 {[%clk 0:00:35]} 51. b5 {[%clk 0:00:22]}  Ra2 {[%clk 0:00:34]} 52. b6 {[%clk 0:00:21]}  Rxb6+ {[%clk 0:00:34]} 53. Ka8 {[%clk 0:00:21]}  Rb4 {[%clk 0:00:33]} 54. d7 {[%clk 0:00:22]}  Rbxa4 {[%clk 0:00:26]} 55. Kb7 {[%clk 0:00:19]}  Kxd7 {[%clk 0:00:25]} 56. Ka8 {[%clk 0:00:18]}  Rh2 {[%clk 0:00:26]} 57. Kb7 {[%clk 0:00:19]}  Rb4+ {[%clk 0:00:25]} 58. Ka8 {[%clk 0:00:19]}  Rh8+ {[%clk 0:00:25]} 59. Kxa7 {[%clk 0:00:20]}  Rh1 {[%clk 0:00:24]} 0-1


[Site "https://www.chess.com"]

[Event "Titled Tuesday Blitz January 10 Late 2023"]
[White "Kuznetsov, Felix"]
[Black "Souleidis, Georgios"]
[WhiteFideId "34147990"]
[BlackFideId "4206827"]
[WhiteElo "2254"]
[BlackElo "2419"]
[Result "1-0"]
[Round "07"]
[TimeControl "180+2"]
[Date "2023.01.10"]
[WhiteClock "0:00:07"]
[BlackClock "0:00:01"]

1. e4 {[%clk 0:00:00]}  c5 {[%clk 0:00:00]} 2. Nf3 {[%clk 0:03:00]}  e6 {[%clk 0:02:59]} 3. b3 {[%clk 0:03:00]}  a6 {[%clk 0:02:59]} 4. Bb2 {[%clk 0:03:00]}  Nc6 {[%clk 0:02:54]} 5. Nc3 {[%clk 0:03:00]}  d5 {[%clk 0:02:54]} 6. exd5 {[%clk 0:02:57]}  exd5 {[%clk 0:02:47]} 7. d4 {[%clk 0:02:56]}  Nf6 {[%clk 0:02:48]} 8. Be2 {[%clk 0:02:54]}  cxd4 {[%clk 0:02:47]} 9. Nxd4 {[%clk 0:02:47]}  Bc5 {[%clk 0:02:42]} 10. Nxc6 {[%clk 0:02:47]}  bxc6 {[%clk 0:02:42]} 11. O-O {[%clk 0:02:35]}  O-O {[%clk 0:02:43]} 12. Na4 {[%clk 0:02:35]}  Bd6 {[%clk 0:02:43]} 13. c4 {[%clk 0:02:31]}  Re8 {[%clk 0:02:43]} 14. Bf3 {[%clk 0:02:27]}  Qc7 {[%clk 0:02:33]} 15. h3 {[%clk 0:02:22]}  dxc4 {[%clk 0:02:22]} 16. Bxf6 {[%clk 0:02:14]}  gxf6 {[%clk 0:02:09]} 17. Rc1 {[%clk 0:02:12]}  Be6 {[%clk 0:02:09]} 18. bxc4 {[%clk 0:02:02]}  Rad8 {[%clk 0:02:04]} 19. Qc2 {[%clk 0:02:00]}  Bh2+ {[%clk 0:02:03]} 20. Kh1 {[%clk 0:01:51]}  Bf4 {[%clk 0:02:00]} 21. Rcd1 {[%clk 0:01:51]}  c5 {[%clk 0:02:01]} 22. Bd5 {[%clk 0:01:42]}  Be5 {[%clk 0:01:59]} 23. Rfe1 {[%clk 0:01:31]}  Qa5 {[%clk 0:01:43]} 24. Re3 {[%clk 0:01:05]}  Kh8 {[%clk 0:01:22]} 25. Nc3 {[%clk 0:00:49]}  Bd4 {[%clk 0:01:12]} 26. Rf3 {[%clk 0:00:38]}  Bxd5 {[%clk 0:01:05]} 27. Nxd5 {[%clk 0:00:32]}  Re1+ {[%clk 0:00:42]} 28. Rxe1 {[%clk 0:00:19]}  Qxe1+ {[%clk 0:00:42]} 29. Kh2 {[%clk 0:00:20]}  Kg7 {[%clk 0:00:42]} 30. g3 {[%clk 0:00:20]}  Re8 {[%clk 0:00:30]} 31. Qf5 {[%clk 0:00:18]}  Re6 {[%clk 0:00:27]} 32. Nf4 {[%clk 0:00:16]}  Rb6 {[%clk 0:00:25]} 33. Nh5+ {[%clk 0:00:14]}  Kf8 {[%clk 0:00:10]} 34. Qc8+ {[%clk 0:00:13]}  Qe8 {[%clk 0:00:07]} 35. Qc7 {[%clk 0:00:10]}  Qc6 {[%clk 0:00:04]} 36. Qd8+ {[%clk 0:00:07]}  Qe8 {[%clk 0:00:03]} 37. Qxb6 {[%clk 0:00:06]}  Qe4 {[%clk 0:00:02]} 38. Qd8+ {[%clk 0:00:06]}  Qe8 {[%clk 0:00:01]} 39. Qxe8+ {[%clk 0:00:07]}  Kxe8 {[%clk 0:00:01]} 40. Nxf6+ {[%clk 0:00:07]} 1-0


[Site "https://www.chess.com"]

[Event "Titled Tuesday Blitz January 10 Late 2023"]
[White "Borges Feria, Yasel"]
[Black "Yurovskykh, Oleksandr"]
[WhiteFideId "3504921"]
[BlackFideId "14134020"]
[WhiteElo "2439"]
[BlackElo "2328"]
[Result "1-0"]
[Round "07"]
[TimeControl "180+2"]
[Date "2023.01.10"]
[WhiteClock "0:00:32"]
[BlackClock "0:00:02"]

1. e4 {[%clk 0:00:00]}  c6 {[%clk 0:00:00]} 2. d4 {[%clk 0:03:00]}  d5 {[%clk 0:02:56]} 3. e5 {[%clk 0:03:00]}  Bf5 {[%clk 0:02:57]} 4. Nf3 {[%clk 0:02:58]}  e6 {[%clk 0:02:56]} 5. Be2 {[%clk 0:02:54]}  Ne7 {[%clk 0:02:57]} 6. O-O {[%clk 0:02:53]}  h6 {[%clk 0:02:49]} 7. Nbd2 {[%clk 0:02:47]}  Bh7 {[%clk 0:02:49]} 8. a4 {[%clk 0:02:43]}  Ng6 {[%clk 0:02:42]} 9. Nb3 {[%clk 0:02:39]}  Nd7 {[%clk 0:02:35]} 10. a5 {[%clk 0:02:29]}  a6 {[%clk 0:02:22]} 11. c4 {[%clk 0:02:25]}  Be7 {[%clk 0:02:22]} 12. Be3 {[%clk 0:02:22]}  O-O {[%clk 0:02:21]} 13. Rc1 {[%clk 0:02:15]}  Rc8 {[%clk 0:02:19]} 14. Qd2 {[%clk 0:02:12]}  Nh4 {[%clk 0:02:18]} 15. Nxh4 {[%clk 0:02:09]}  Bxh4 {[%clk 0:02:14]} 16. cxd5 {[%clk 0:01:58]}  cxd5 {[%clk 0:02:15]} 17. Rxc8 {[%clk 0:01:56]}  Qxc8 {[%clk 0:01:48]} 18. Rc1 {[%clk 0:01:54]}  Qb8 {[%clk 0:01:46]} 19. Qc3 {[%clk 0:01:55]}  Bd8 {[%clk 0:01:42]} 20. f3 {[%clk 0:01:55]}  b6 {[%clk 0:01:25]} 21. axb6 {[%clk 0:01:45]}  Nxb6 {[%clk 0:01:10]} 22. Nc5 {[%clk 0:01:39]}  Nc4 {[%clk 0:00:51]} 23. Bxc4 {[%clk 0:01:35]}  dxc4 {[%clk 0:00:44]} 24. Nd7 {[%clk 0:01:30]}  Qb5 {[%clk 0:00:44]} 25. Nxf8 {[%clk 0:01:31]}  Bd3 {[%clk 0:00:31]} 26. Nd7 {[%clk 0:01:29]}  Ba5 {[%clk 0:00:31]} 27. Qa3 {[%clk 0:01:00]}  Bb4 {[%clk 0:00:20]} 28. Qa1 {[%clk 0:00:54]}  Qxd7 {[%clk 0:00:20]} 29. Qxa6 {[%clk 0:00:48]}  g5 {[%clk 0:00:20]} 30. b3 {[%clk 0:00:49]}  g4 {[%clk 0:00:20]} 31. bxc4 {[%clk 0:00:41]}  gxf3 {[%clk 0:00:05]} 32. Qa8+ {[%clk 0:00:34]}  Kh7 {[%clk 0:00:04]} 33. Qxf3 {[%clk 0:00:34]}  Bg6 {[%clk 0:00:02]} 34. d5 {[%clk 0:00:35]}  exd5 {[%clk 0:00:02]} 35. cxd5 {[%clk 0:00:32]} 1-0


[Site "https://www.chess.com"]